fUST/lending_fUST_20250225
["ID","MTS","AMOUNT","RATE_DAILY","PERIOD"]
[354405426,1740473437483,-151.0,0.00273973,120]
[354405427,1740473437493,-151.0,0.00273973,120]
[354405428,1740473437503,-151.0,0.00273973,120]
[354405429,1740473437513,-151.0,0.00273973,120]
[354405430,1740473437522,-151.0,0.00273973,120]
[354405431,1740473437532,-151.0,0.00273973,120]
[354405432,1740473437541,-151.0,0.00273973,120]
[354405433,1740473437551,-154.373454,0.00273973,120]
[354405434,1740473437560,-151.0,0.00273973,120]
[354405435,1740473437570,-151.0,0.00273973,30]
[354405436,1740473437580,-151.0,0.00273973,30]
[354405437,1740473437590,-151.0,0.00273973,30]
[354405438,1740473437602,-210.61027,0.00273973,30]
[354405439,1740473437612,-151.0,0.00273973,120]
[354405440,1740473437622,-196.061393,0.00273973,120]
[354405441,1740473437633,-151.0,0.00273973,120]
[354405442,1740473437642,-151.0,0.00273973,120]
[354405443,1740473437652,-241.11168,0.00273973,120]
[354405444,1740473437662,-151.0,0.00273973,120]
[354405445,1740473437671,-151.0,0.00273973,120]
[354405446,1740473437682,-151.0,0.00273973,120]
[354405447,1740473437694,-151.0,0.00273973,120]
[354405448,1740473437703,-151.0,0.00273973,120]
[354405449,1740473437713,-151.0,0.00273973,120]
[354405450,1740473437723,-151.0,0.00273973,120]
[354405451,1740473437733,-151.0,0.00273973,120]
[354405452,1740473437743,-151.0,0.00273973,120]
[354405453,1740473437753,-151.0,0.00273973,120]
[354405454,1740473437762,-151.0,0.00273973,120]
[354405455,1740473437773,-169.116998,0.00273973,120]
[354405456,1740473437782,-151.0,0.00273973,120]
[354405457,1740473437792,-151.0,0.00273973,120]
[354405458,1740473437801,-223.51587806,0.00273973,120]
[354405459,1740473437810,-151.0,0.00273973,120]
[354405460,1740473437819,-151.0,0.00273973,120]
[354405461,1740473437829,-216.179041,0.00273973,120]
[354405462,1740473437838,-151.16206,0.00273973,120]
[354405463,1740473437848,-151.0,0.00273973,120]
[354405464,1740473437857,-151.0,0.00273973,120]
[354405465,1740473437867,-165.526617,0.00273973,120]
[354405466,1740473437878,-275.336824,0.00273973,120]
[354405467,1740473437891,-151.0,0.00273973,120]
[354405468,1740473437900,-151.0,0.00273973,120]
[354405469,1740473437909,-151.0,0.00273973,120]
[354405470,1740473437919,-151.0,0.00273973,120]
[354405471,1740473437928,-151.0,0.00273973,120]
[354405472,1740473437937,-300.849955,0.00273973,120]
[354405473,1740473437946,-268.984944,0.00273973,120]
[354405474,1740473437955,-151.0,0.00273973,30]
[354405475,1740473437964,-324.800267,0.00273973,120]
[354405476,1740473437973,-324.800267,0.00273973,120]
[354405477,1740473437982,-324.800267,0.00273973,120]
[354405478,1740473437992,-324.800267,0.00273973,120]
[354405479,1740473438001,-324.800267,0.00273973,120]
[354405480,1740473438010,-324.800267,0.00273973,120]
[354405481,1740473438019,-324.800267,0.00273973,120]
[354405482,1740473438029,-324.800267,0.00273973,120]
[354405483,1740473438038,-3000.0,0.00273973,120]
[354405484,1740473438048,-517.29935918,0.00273973,120]
[354405485,1740473438081,500.0,0.00067397,120]
[354405487,1740473438112,500.0,0.00067671,120]
[354405488,1740473438145,500.0,0.00067945,120]
[354405489,1740473438180,500.0,0.00068219,120]
[354405490,1740473438213,500.0,0.00068493,120]
[354405491,1740473438248,500.0,0.00068767,120]
[354405492,1740473438282,500.0,0.00069041,120]
[354405493,1740473438317,500.0,0.00069315,120]
[354405494,1740473438351,500.0,0.00069589,120]
[354405495,1740473438384,500.0,0.00069863,120]
[354405496,1740473438420,500.0,0.00070136,120]
[354405497,1740473438456,500.0,0.0007041,120]
[354405498,1740473438491,500.0,0.00070684,120]
[354405499,1740473438526,517.39958952,0.00070958,120]
[354405500,1740473438557,248.36454853,0.0012,120]
[354405501,1740473438870,-500.0,0.00273972,120]
[354405502,1740473438883,-324.800267,0.00273973,120]
[354405503,1740473438892,-324.800267,0.00273973,120]
[354405504,1740473438902,-324.800267,0.00273973,120]
[354405505,1740473438911,-324.800267,0.00273973,120]
[354405506,1740473438920,-324.800267,0.00273973,120]
[354405507,1740473438929,-324.800267,0.00273973,120]
[354405508,1740473438939,-324.800267,0.00273973,120]
[354405509,1740473438948,-324.800267,0.00273973,120]
[354405510,1740473438957,-324.800267,0.00273973,120]
[354405511,1740473438966,-324.800267,0.00273973,120]
[354405512,1740473438976,-324.800267,0.00273973,120]
[354405513,1740473438985,-324.800276,0.00273973,120]
[354405514,1740473438996,-2482.70064082,0.00273973,120]
[354405515,1740473439006,-3000.0,0.00273973,120]
[354405516,1740473439015,-2985.0408426,0.00273973,120]
[354405517,1740473439027,-14.9591574,0.00273973,120]
[354405518,1740473439113,-3000.0,0.00273973,120]
[354405519,1740473439123,-3999.01472361,0.00292452,87]
[354405520,1740473439134,-500.0,0.003,120]
[354405521,1740473439144,-698.22785982,0.00319644,120]
[354405522,1740473439153,-500.0,0.0035,120]
[354405523,1740473439163,-801.41,0.0035,120]
[354405524,1740473439172,-1473.937,0.00364794,93]
[354405525,1740473439181,-500.0,0.004,120]
[354405526,1740473439191,-698.22785982,0.00417858,120]
[354405527,1740473439200,-500.0,0.0043,120]
[354405528,1740473439210,-500.0,0.0045,120]
[354405529,1740473439219,-1654.17972,0.0047464,79]
[354405530,1740473439229,-500.0,0.005,120]
[354405531,1740473439238,-1715.342535,0.005,101]
[354405532,1740473439247,-698.22785982,0.00516072,120]
[354405533,1740473439257,-200.87329992,0.00532003,120]
[354405534,1740473439294,500.0,0.00065753,120]
[354405535,1740473439308,-3798.14142369,0.00532003,120]
[354405536,1740473439318,-20.22555152,0.00539103,120]
[354405537,1740473439330,-1294.71059935,0.00539103,120]
[354405538,1740473439340,-880.64927877,0.00545,120]
[354405539,1740473439352,-323.29379256,0.00545,120]
[354405540,1740473439363,-13.54692867,0.00545,120]
[354405541,1740473439373,-500.0,0.00547945,120]
[354405542,1740473439387,-500.0,0.00547945,120]
[354405543,1740473439397,-500.0,0.00547945,120]
[354405544,1740473439408,-500.0,0.00547945,120]
[354405545,1740473439417,-500.0,0.00547945,120]
[354405546,1740473439426,-500.0,0.0055,120]
[354405547,1740473439436,-1379.56,0.0055,60]
[354405548,1740473439446,-1018.5,0.00554,75]
[354405549,1740473439457,-500.0,0.0057,120]
[354405550,1740473439467,-1000.0,0.0058105,120]
[354405551,1740473439476,-500.0,0.006,120]
[354405552,1740473439486,-1901.13,0.006,60]
[354405553,1740473439495,-2000.0,0.006,120]
[354405554,1740473439504,-2000.0,0.006,120]
[354405555,1740473439516,-2000.0,0.006,120]
[354405556,1740473439525,-2000.0,0.006,120]
[354405557,1740473439534,-1131.76708451,0.006,120]
[354405558,1740473440124,26447.83,0.000688,30]
[354405567,1740473440440,26447.83,0.000822,30]
[354405568,1740473440630,-868.23291549,0.006,120]
[354405569,1740473440641,-2000.0,0.006,120]
[354405570,1740473440650,-2000.0,0.006,120]
[354405571,1740473440660,-2000.0,0.006,120]
[354405572,1740473440669,-2000.0,0.006,120]
[354405573,1740473440679,-1500.00000109,0.006,120]
[354405574,1740473440689,-113111.000001,0.006,120]
[354405575,1740473440698,-500.0,0.006,120]
[354405576,1740473440707,-500.0,0.006,120]
[354405577,1740473440716,-500.0,0.006,120]
[354405578,1740473440725,-501.51287101,0.006,120]
[354405579,1740473440734,-31085.32548071,0.006,120]
[354405580,1740473440743,-698.22785982,0.00614287,120]
[354405581,1740473440752,-18800.0,0.00628,120]
[354405582,1740473440762,-500.0,0.00683,30]
[354405583,1740473440771,-1844.5131,0.0069,98]
[354405584,1740473440780,-25000.0,0.007,71]
[354405585,1740473440790,-13710.86635141,0.007,120]
[354405586,1740473440798,-500.0,0.007,120]
[354405587,1740473440807,-698.22785982,0.00712597,120]
[354405588,1740473440816,-68490.36697777,0.00747889,120]
[354405589,1740473440825,-1000.0,0.0075,120]
[354405590,1740473440835,-500.0,0.0075,120]
[354405591,1740473440844,-12049.99999901,0.0077,120]
[354405592,1740473440853,-3999.01472361,0.00771555,120]
[354405593,1740473440862,-150.0,0.00788,120]
[354405594,1740473440871,-2450.88196432,0.00788,120]
[354405595,1740473440972,26447.83,0.001,30]
[354405596,1740473441736,520.47145173,0.00065753,120]
[354405618,1740473443193,500.0,0.0012,120]
[354405620,1740473443429,500.0,0.00065753,3]
[354405625,1740473443694,500.0,0.00066027,3]
[354405626,1740473443952,500.0,0.00066301,3]
[354405627,1740473444188,500.0,0.00066575,3]
[354405628,1740473444440,553.62,0.00066849,3]
[354405630,1740473444574,500.0,0.0012,120]
[354405631,1740473445653,500.0,0.00065753,120]
[354405632,1740473445802,250.0,0.00065753,120]
[354405635,1740473446069,250.0,0.00066027,120]
[354405646,1740473446333,250.0,0.00066301,120]
[354405649,1740473446689,-250.0,0.00066575,120]
[354405650,1740473446700,-500.0,0.00120274,120]
[354405651,1740473446709,-500.0,0.00120274,120]
[354405652,1740473446718,-500.0,0.00120548,120]
[354405653,1740473446727,-500.0,0.00120548,120]
[354405654,1740473446736,-500.0,0.00120822,120]
[354405655,1740473446745,-500.0,0.00120822,120]
[354405657,1740473446754,-997.33158435,0.00121096,120]
[354405659,1740473446763,-500.0,0.00121096,120]
[354405661,1740473446772,-500.0,0.0012137,120]
[354405662,1740473446781,-570.4975262,0.00121644,120]
[354405664,1740473446790,-26447.83,0.00293,120]
[354405665,1740473446799,-1391.01136159,0.00599999,120]
[354405666,1740473446808,-1391.01136159,0.00599999,120]
[354405667,1740473446817,-1391.01136159,0.00599999,120]
[354405668,1740473446826,-1391.01136159,0.00599999,120]
[354405669,1740473446835,-1391.01136159,0.00599999,120]
[354405670,1740473446844,-26447.83,0.00683,120]
[354405671,1740473446853,-2991.59218342,0.00788,120]
[354405672,1740473446866,-17133.77198563,0.00788,120]
[354405673,1740473446946,-1391.01136159,0.00599999,120]
[354405674,1740473447056,-1391.01136159,0.00599999,120]
[354405675,1740473447066,-3474.08863841,0.00788,120]
[354405678,1740473471686,171.808426,0.00013699,2]
[354405679,1740473471908,171.808426,0.00027397,2]
[354405680,1740473485376,511.0590637,0.00051965,2]
[354405683,1740473531751,-300.0,0.00065752,60]
[354405684,1740473531782,-500.0,0.00065753,120]
[354405685,1740473531810,-500.0,0.00065753,120]
[354405686,1740473531835,-500.0,0.00065753,120]
[354405687,1740473531873,-500.0,0.00065753,120]
[354405688,1740473531901,-500.0,0.00065753,120]
[354405689,1740473531927,-500.0,0.00065753,120]
[354405690,1740473531952,-500.0,0.00065753,120]
[354405691,1740473531979,-500.0,0.00065753,120]
[354405692,1740473532006,-500.0,0.00065753,120]
[354405693,1740473532032,-500.0,0.00065753,120]
[354405694,1740473532060,-500.0,0.00065753,120]
[354405695,1740473532088,-500.0,0.00065753,120]
[354405696,1740473532113,-367.31275642,0.00065753,120]
[354405697,1740473532139,-500.0,0.00065753,120]
[354405698,1740473532167,-500.0,0.00065753,120]
[354405699,1740473532196,-500.0,0.00065753,120]
[354405700,1740473532224,-500.0,0.00065753,120]
[354405701,1740473532249,-500.0,0.00065753,120]
[354405702,1740473532275,-500.0,0.00065753,120]
[354405703,1740473532300,-500.0,0.00065753,120]
[354405704,1740473532325,-500.0,0.00065753,120]
[354405705,1740473532350,-512.93022185,0.00066027,120]
[354405706,1740473532374,-500.0,0.00066027,120]
[354405707,1740473532399,-500.0,0.00066027,120]
[354405708,1740473532423,-500.0,0.00066027,120]
[354405709,1740473532448,-602.9,0.00066027,120]
[354405710,1740473532473,-500.0,0.00066027,120]
[354405711,1740473532498,-500.0,0.00066027,120]
[354405712,1740473532523,-500.0,0.00066027,120]
[354405713,1740473532548,-500.0,0.00066027,120]
[354405714,1740473532573,-500.0,0.00066027,120]
[354405715,1740473532598,-500.0,0.00066027,120]
[354405716,1740473532624,-500.0,0.00066027,120]
[354405717,1740473532652,-500.0,0.00066301,120]
[354405718,1740473532679,-500.0,0.00066301,120]
[354405719,1740473532706,-618.64,0.00066301,120]
[354405720,1740473532733,-500.0,0.00066301,120]
[354405721,1740473532757,-500.0,0.00066301,120]
[354405722,1740473532783,-500.0,0.00066301,120]
[354405723,1740473532812,-500.0,0.00066575,120]
[354405724,1740473532836,-500.0,0.00066575,120]
[354405725,1740473532861,-500.0,0.00066575,120]
[354405726,1740473532885,-500.0,0.00066849,120]
[354405727,1740473532910,-500.0,0.00066849,120]
[354405728,1740473532935,-500.0,0.00067123,120]
[354405729,1740473532961,-500.0,0.00067123,120]
[354405730,1740473532986,-500.0,0.00067396,120]
[354405731,1740473533013,-500.0,0.00067397,120]
[354405732,1740473533037,-500.0,0.00067397,120]
[354405733,1740473533171,-98.21702173,0.0006767,120]
[354405735,1740473535673,-401.78297827,0.0006767,120]
[354405736,1740473535699,-500.0,0.00067671,120]
[354405737,1740473535726,-273.25629407,0.00067671,120]
[354405738,1740473535751,-500.0,0.00067945,120]
[354405739,1740473535777,-500.0,0.00068219,120]
[354405740,1740473535802,-500.0,0.00068493,120]
[354405741,1740473535825,-500.0,0.00068767,120]
[354405742,1740473535851,-500.0,0.00069041,120]
[354405743,1740473535876,-500.0,0.00069315,120]
[354405744,1740473535902,-500.0,0.00069589,120]
[354405745,1740473535928,-500.0,0.00069863,120]
[354405746,1740473535955,-500.0,0.00070136,120]
[354405747,1740473535981,-259.42900803,0.0007041,120]
[354405748,1740473536008,-293.9494326,0.0009806,120]
[354405749,1740473536034,-500.0,0.00112373,7]
[354405750,1740473536059,-500.0,0.00112373,60]
[354405751,1740473536085,-500.0,0.00112373,60]
[354405752,1740473536109,-504.57497193,0.00112921,60]
[354405753,1740473536134,-1000.0,0.00112921,60]
[354405754,1740473536159,-1500.0,0.00113923,60]
[354405755,1740473536185,-2047.0,0.00115221,60]
[354405756,1740473536211,-3465.81276052,0.001199,33]
[354405757,1740473536236,-951.45,0.0012,120]
[354405758,1740473536261,-150.47,0.0012,2]
[354405759,1740473536285,-500.0,0.0012,120]
[354405760,1740473536311,-500.0,0.0012,120]
[354405761,1740473536335,-150.48,0.0012,120]
[354405762,1740473536362,-150.48,0.0012,120]
[354405763,1740473536387,-500.0,0.0012,64]
[354405764,1740473536412,-150.47,0.0012,120]
[354405765,1740473536437,-500.0,0.00120274,120]
[354405766,1740473536463,-743.37804932,0.00120274,120]
[354405767,1740473536489,-500.0,0.00120274,64]
[354405768,1740473536514,-150.47,0.00120274,120]
[354405769,1740473536539,-500.0,0.00120548,120]
[354405770,1740473536563,-914.9566,0.00120548,64]
[354405771,1740473536589,-199.06,0.00120548,120]
[354405772,1740473536617,-500.0,0.00120822,120]
[354405773,1740473536646,-799.52531234,0.00121096,120]
[354405774,1740473536674,-893.45459292,0.00357141,107]
[354405775,1740473536750,-500.0,0.00067396,120]
[354405776,1740473536778,-500.0,0.0006767,120]
[354405777,1740473536806,-2572.35816754,0.00357141,107]
[354405778,1740473536832,-3465.81276046,0.00594383,120]
[354405779,1740473536858,-1391.01136159,0.00599999,120]
[354405780,1740473536884,-1391.01136159,0.00599999,120]
[354405781,1740473536910,-1391.01136159,0.00599999,120]
[354405782,1740473536937,-1391.01136159,0.00599999,120]
[354405783,1740473536963,-1391.01136159,0.00599999,120]
[354405784,1740473536987,-1391.01136159,0.00599999,120]
[354405785,1740473537012,-1251.91022542,0.00599999,120]
[354405786,1740473537036,-1251.91022542,0.00599999,120]
[354405787,1740473537060,-1251.91022542,0.00599999,120]
[354405788,1740473537085,-1251.91022542,0.00599999,120]
[354405789,1740473537109,-1251.91022542,0.00599999,120]
[354405790,1740473537134,-1251.91022542,0.00599999,120]
[354405791,1740473537158,-1251.91022542,0.00599999,120]
[354405792,1740473537182,-852.38932452,0.00599999,120]
[354405793,1740473538128,-500.0,0.00065753,120]
[354405794,1740473538156,-500.0,0.00066027,120]
[354405795,1740473538270,-399.5209009,0.00599999,120]
[354405796,1740473538305,-1251.91022542,0.00599999,120]
[354405797,1740473538333,-1251.91022542,0.00599999,120]
[354405798,1740473538361,-1251.91022542,0.00599999,120]
[354405799,1740473538390,-1251.91022542,0.00599999,120]
[354405800,1740473538419,-1356.90914756,0.00599999,120]
[354405801,1740473538448,-1000.0,0.006,120]
[354405802,1740473538478,-16235.92904986,0.007,120]
[354405804,1740473621383,113111.000001,0.00043618,120]
[354405805,1740473653472,-459.5567162,0.00052557,30]
[354405806,1740473657112,-11237.8901707,0.00055014,120]
[354405807,1740473665219,-788.96169053,0.00065653,120]
[354405808,1740473665246,-1000.0,0.00065752,120]
[354405809,1740473665271,-500.0,0.00065753,120]
[354405810,1740473665297,-500.0,0.00065753,120]
[354405811,1740473665323,-500.0,0.00065753,120]
[354405812,1740473665350,-309.05478744,0.00065753,120]
[354405813,1740473665376,-500.0,0.00065753,120]
[354405814,1740473665402,-500.0,0.00065753,120]
[354405815,1740473665428,-500.0,0.00065753,120]
[354405816,1740473665454,-500.0,0.00065753,120]
[354405817,1740473665479,-500.0,0.00065753,120]
[354405818,1740473665506,-611.49,0.00065753,120]
[354405819,1740473665532,-500.0,0.00065753,120]
[354405820,1740473665559,-725.74,0.00065753,7]
[354405821,1740473665584,-500.0,0.00065753,120]
[354405822,1740473665611,-500.0,0.00065753,120]
[354405823,1740473665636,-500.0,0.00065753,120]
[354405824,1740473665664,-500.0,0.00065753,120]
[354405825,1740473665692,-500.0,0.00065753,120]
[354405826,1740473665718,-500.0,0.00065753,120]
[354405827,1740473665743,-500.0,0.00065753,120]
[354405828,1740473665769,-257.04340586,0.00065753,120]
[354405829,1740473665794,-500.0,0.00065753,120]
[354405830,1740473665822,-500.0,0.00065753,120]
[354405831,1740473665850,-500.0,0.00065753,120]
[354405832,1740473665979,-500.0,0.00065753,120]
[354405833,1740473666007,-500.0,0.00065753,120]
[354405834,1740473666032,-500.0,0.00065753,120]
[354405835,1740473666058,-500.0,0.00065753,120]
[354405836,1740473666083,-503.48,0.00065753,120]
[354405837,1740473666109,-500.0,0.00065753,120]
[354405838,1740473666135,-500.0,0.00065753,120]
[354405839,1740473666159,-504.45646631,0.00065753,120]
[354405840,1740473666188,-643.03,0.00065753,120]
[354405841,1740473666214,-860.99,0.00065753,120]
[354405842,1740473666239,-500.0,0.00065753,120]
[354405843,1740473666265,-500.0,0.00065753,120]
[354405844,1740473666289,-1000.0,0.00066026,120]
[354405845,1740473666315,-500.0,0.00066027,120]
[354405846,1740473666343,-326.04070655,0.00066027,120]
[354405847,1740473666367,-500.0,0.00066027,120]
[354405848,1740473666393,-500.0,0.00066027,120]
[354405849,1740473666420,-500.0,0.00066027,120]
[354405850,1740473666446,-500.0,0.00066027,120]
[354405851,1740473666473,-611.49,0.00066027,120]
[354405852,1740473666498,-500.0,0.00066027,120]
[354405853,1740473666526,-358.22294331,0.00066027,7]
[354405857,1740473714688,-500.0,0.00065753,120]
[354405858,1740473714715,-502.73680723,0.00065753,120]
[354405859,1740473714746,-500.0,0.00065753,120]
[354405860,1740473714771,-500.0,0.00065753,120]
[354405861,1740473714795,-500.0,0.00065753,120]
[354405862,1740473714820,-500.0,0.00065753,120]
[354405863,1740473714844,-500.0,0.00065753,120]
[354405864,1740473714871,-367.51705669,0.00066027,7]
[354405865,1740473714896,-500.0,0.00066027,120]
[354405866,1740473714921,-500.0,0.00066027,120]
[354405867,1740473714947,-500.0,0.00066027,120]
[354405868,1740473714972,-500.0,0.00066027,120]
[354405869,1740473714996,-500.0,0.00066027,120]
[354405870,1740473715022,-500.0,0.00066027,120]
[354405871,1740473715046,-500.0,0.00066027,120]
[354405872,1740473715072,-500.0,0.00066027,120]
[354405873,1740473715101,-500.0,0.00066027,120]
[354405874,1740473715145,-500.0,0.00066027,120]
[354405875,1740473715186,-500.0,0.00066027,120]
[354405876,1740473715228,-583.12042637,0.00066027,120]
[354405877,1740473715270,-500.0,0.00066027,120]
[354405878,1740473715315,-643.03,0.00066027,120]
[354405879,1740473715350,-860.99,0.00066027,120]
[354405880,1740473715391,-303.51921138,0.00066027,120]
[354405881,1740473715431,-500.0,0.00066027,120]
[354405882,1740473715470,-500.0,0.00066027,120]
[354405883,1740473715505,-500.0,0.00066027,120]
[354405884,1740473715540,-500.0,0.00066027,120]
[354405885,1740473715578,-500.0,0.00066027,120]
[354405886,1740473715612,-500.0,0.00066027,120]
[354405887,1740473715647,-500.0,0.00066301,120]
[354405888,1740473715676,-500.0,0.00066301,120]
[354405889,1740473715706,-500.0,0.00066301,120]
[354405890,1740473715735,-611.49,0.00066301,120]
[354405891,1740473715760,-500.0,0.00066301,120]
[354405892,1740473715788,-725.74,0.00066301,7]
[354405893,1740473715814,-500.0,0.00066301,120]
[354405894,1740473715841,-500.0,0.00066301,120]
[354405895,1740473715867,-500.0,0.00066301,120]
[354405896,1740473715894,-500.0,0.00066301,120]
[354405897,1740473715920,-500.0,0.00066301,120]
[354405898,1740473716124,-500.0,0.00066301,120]
[354405899,1740473716157,-500.0,0.00066301,120]
[354405900,1740473716184,-254.48,0.00066301,120]
[354405901,1740473716210,-478.37,0.00066301,120]
[354405902,1740473716235,-513.21262946,0.00066301,120]
[354405903,1740473716260,-500.0,0.00066301,120]
[354405904,1740473716286,-500.0,0.00066301,120]
[354405905,1740473716314,-643.03,0.00066301,120]
[354405906,1740473716341,-12.76386887,0.00066301,120]
[354405907,1740473716442,-848.22613113,0.00066301,120]
[354405908,1740473716468,-500.0,0.00066301,120]
[354405909,1740473716494,-500.0,0.00066301,120]
[354405910,1740473716520,-511.36147348,0.00066301,120]
[354405911,1740473716545,-601.09381528,0.00066301,120]
[354405912,1740473716571,-500.0,0.00066301,120]
[354405913,1740473716596,-500.0,0.00066301,120]
[354405914,1740473716622,-500.0,0.00066575,120]
[354405915,1740473716651,-500.0,0.00066575,120]
[354405916,1740473716679,-500.0,0.00066575,120]
[354405917,1740473716709,-611.49,0.00066575,120]
[354405918,1740473716736,-500.0,0.00066575,120]
[354405919,1740473716765,-725.74,0.00066575,7]
[354405920,1740473716791,-500.0,0.00066575,120]
[354405921,1740473716816,-500.0,0.00066575,120]
[354405922,1740473716841,-500.0,0.00066575,120]
[354405923,1740473716867,-500.0,0.00066575,120]
[354405924,1740473716893,-500.0,0.00066575,120]
[354405925,1740473716918,-500.0,0.00066575,120]
[354405926,1740473716942,-500.0,0.00066575,120]
[354405927,1740473716970,-643.03,0.00066575,120]
[354405928,1740473716996,-860.99,0.00066575,120]
[354405929,1740473717022,-500.0,0.00066575,120]
[354405930,1740473717047,-178.26,0.00066575,120]
[354405931,1740473717072,-500.0,0.00066575,120]
[354405932,1740473717097,-500.0,0.00066575,120]
[354405933,1740473717124,-611.49,0.00066849,120]
[354405934,1740473717150,-500.0,0.00066849,120]
[354405935,1740473717177,-725.74,0.00066849,7]
[354405936,1740473717201,-500.0,0.00066849,120]
[354405937,1740473717227,-500.0,0.00066849,120]
[354405938,1740473717253,-500.0,0.00066849,120]
[354405939,1740473717279,-638.59621379,0.00066849,120]
[354405940,1740473717304,-500.0,0.00066849,120]
[354405941,1740473717332,-643.03,0.00066849,120]
[354405942,1740473717358,-860.99,0.00066849,120]
[354405943,1740473717384,-500.0,0.00066849,120]
[354405944,1740473717410,-500.0,0.00066849,120]
[354405945,1740473717435,-500.0,0.00066941,7]
[354405946,1740473717460,-501.93329769,0.00066941,15]
[354405947,1740473717489,-611.49,0.00067123,120]
[354405948,1740473717514,-500.0,0.00067123,120]
[354405949,1740473717542,-725.74,0.00067123,7]
[354405950,1740473717567,-646.43038618,0.00067123,120]
[354405951,1740473717593,-236.54,0.00067123,120]
[354405952,1740473717620,-317.82868245,0.00067123,120]
[354405953,1740473717689,-182.17131755,0.00067123,120]
[354405954,1740473717715,-500.0,0.00067123,120]
[354405955,1740473717745,-643.03,0.00067123,120]
[354405956,1740473717771,-860.99,0.00067123,120]
[354405957,1740473717797,-500.0,0.00067123,120]
[354405958,1740473717823,-500.0,0.00067396,120]
[354405959,1740473717850,-500.0,0.00067396,120]
[354405960,1740473717876,-500.0,0.00067396,120]
[354405961,1740473717974,-500.0,0.00067396,120]
[354405962,1740473718001,-500.0,0.00067396,120]
[354405963,1740473718028,-500.0,0.00067396,120]
[354405964,1740473718055,-500.0,0.00067396,120]
[354405965,1740473718082,-500.0,0.00067396,120]
[354405966,1740473718108,-506.52428404,0.00067396,120]
[354405967,1740473718135,-500.0,0.00067396,120]
[354405968,1740473718163,-500.0,0.00067396,21]
[354405969,1740473718190,-500.0,0.00067396,120]
[354405970,1740473718218,-561.1665314,0.00067396,120]
[354405971,1740473718248,-500.0,0.00067396,120]
[354405972,1740473718275,-500.0,0.00067396,120]
[354405973,1740473718306,-600.46,0.00067396,120]
[354405974,1740473718333,-500.0,0.00067396,120]
[354405975,1740473718359,-500.0,0.00067396,120]
[354405976,1740473718387,-500.0,0.00067396,120]
[354405977,1740473718416,-500.0,0.00067396,120]
[354405978,1740473718444,-500.0,0.00067396,120]
[354405979,1740473718470,-500.0,0.00067396,120]
[354405980,1740473718495,-500.0,0.00067396,120]
[354405981,1740473718523,-500.0,0.00067396,120]
[354405982,1740473718550,-500.0,0.00067396,120]
[354405983,1740473718578,-500.0,0.00067396,120]
[354405984,1740473718604,-500.0,0.00067396,30]
[354405985,1740473718635,-328.92,0.00067396,120]
[354405986,1740473718662,-501.48233923,0.00067396,120]
[354405987,1740473718693,-611.49,0.00067397,120]
[354405988,1740473718723,-725.74,0.00067397,7]